fUST/lending_fUST_20250920
["ID","MTS","AMOUNT","RATE_DAILY","PERIOD"]
[386459283,1758305438503,-538.89,0.00021711,2]
[386459284,1758305438512,-480.0,0.00021711,2]
[386459285,1758305438521,-480.0,0.00021711,2]
[386459286,1758305438530,-369.46279992,0.00021711,2]
[386459287,1758305438539,-701.46,0.00021713,2]
[386459288,1758305438548,-273.47251456,0.00021716,2]
[386459289,1758305438557,-480.0,0.00021716,2]
[386459290,1758305438567,-967.23,0.00021716,2]
[386459291,1758305438575,-620.12,0.00021717,2]
[386459292,1758305438584,-2526.41,0.00021717,2]
[386459293,1758305438594,-480.0,0.00021717,2]
[386459294,1758305438607,-480.0,0.00021717,2]
[386459295,1758305438616,-500.0,0.0002176,2]
[386459296,1758305438625,-500.0,0.0002176,2]
[386459297,1758305438634,-500.0,0.0002176,2]
[386459298,1758305438643,-500.0,0.0002176,2]
[386459299,1758305438653,-500.0,0.0002176,2]
[386459300,1758305438662,-500.0,0.00021762,2]
[386459301,1758305438672,-480.0,0.0002198,2]
[386459302,1758305438682,-480.0,0.0002198,2]
[386459303,1758305438691,-480.0,0.00021982,2]
[386459304,1758305438700,-480.0,0.00021982,2]
[386459305,1758305438710,-480.0,0.00021982,2]
[386459306,1758305438719,-649.0,0.00021984,2]
[386459307,1758305438729,-480.0,0.00021984,2]
[386459308,1758305438741,-480.0,0.00021985,2]
[386459309,1758305438752,-480.0,0.00021985,2]
[386459310,1758305438763,-480.0,0.00021985,2]
[386459311,1758305438772,-480.0,0.00021985,2]
[386459312,1758305438783,-538.89,0.00021985,2]
[386459313,1758305438793,-480.0,0.00021985,2]
[386459314,1758305438804,-480.0,0.00021985,2]
[386459315,1758305438815,-701.46,0.00021987,2]
[386459316,1758305438824,-480.0,0.0002199,2]
[386459317,1758305438833,-967.23,0.0002199,2]
[386459318,1758305438842,-620.12,0.00021991,2]
[386459319,1758305438852,-2526.41,0.00021991,2]
[386459320,1758305438861,-480.0,0.00021991,2]
[386459321,1758305438872,-480.0,0.00021991,2]
[386459322,1758305438881,-480.0,0.00021992,2]
[386459323,1758305438891,-500.0,0.00021992,2]
[386459324,1758305438900,-480.0,0.00021992,2]
[386459325,1758305438910,-401.50164362,0.00021992,2]
[386459326,1758305438921,-78.49835638,0.00021992,2]
[386459327,1758305438931,-604.999999,0.00022,2]
[386459328,1758305438940,-162.380719,0.0002211,2]
[386459329,1758305438948,-500.0,0.00022128,2]
[386459330,1758305438957,-379.20565433,0.00022234,2]
[386459331,1758305438966,-229.20110991,0.00022254,2]
[386459332,1758305438976,-480.0,0.00022254,2]
[386459333,1758305438985,-480.0,0.00022256,2]
[386459334,1758305438995,-480.0,0.00022256,2]
[386459335,1758305439004,-480.0,0.00022256,2]
[386459336,1758305439013,-649.0,0.00022258,2]
[386459337,1758305439023,-480.0,0.00022258,2]
[386459338,1758305439032,-480.0,0.00022259,2]
[386459339,1758305439045,-480.0,0.00022259,2]
[386459340,1758305439055,-538.89,0.00022259,2]
[386459341,1758305439066,-480.0,0.00022259,2]
[386459342,1758305439075,-480.0,0.00022259,2]
[386459343,1758305439085,-344.12322205,0.00022261,2]
[386459344,1758305439097,-357.33677795,0.00022261,2]
[386459345,1758305439107,-480.0,0.00022264,2]
[386459346,1758305439118,-967.23,0.00022264,2]
[386459347,1758305439127,-620.12,0.00022265,2]
[386459348,1758305439139,-2526.41,0.00022265,2]
[386459349,1758305439150,-480.0,0.00022265,2]
[386459350,1758305439164,-480.0,0.00022265,2]
[386459351,1758305439174,-480.0,0.00022266,2]
[386459352,1758305439184,-480.0,0.00022266,2]
[386459353,1758305439193,-1000.0,0.00022308,2]
[386459354,1758305439202,-1000.0,0.00022308,2]
[386459355,1758305439214,-1000.0,0.00022308,2]
[386459356,1758305439223,-1000.0,0.00022309,2]
[386459357,1758305439234,-441.55869827,0.00022387,2]
[386459358,1758305439245,-1766.23479306,0.00022387,2]
[386459359,1758305439254,-3970.0542561,0.00022387,2]
[386459360,1758305439263,-283.34436851,0.00022387,2]
[386459361,1758305439274,-480.0,0.00022528,2]
[386459362,1758305439284,-480.0,0.0002253,2]
[386459363,1758305439294,-480.0,0.0002253,2]
[386459364,1758305439304,-480.0,0.0002253,2]
[386459365,1758305439315,-649.0,0.00022532,2]
[386459366,1758305439325,-480.0,0.00022532,2]
[386459367,1758305439334,-480.0,0.00022533,2]
[386459368,1758305439343,-609.01751816,0.00022533,2]
[386459369,1758305439353,-538.89,0.00022533,2]
[386459370,1758305439363,-480.0,0.00022533,2]
[386459371,1758305439372,-480.0,0.00022533,2]
[386459372,1758305439382,-701.46,0.00022535,2]
[386459373,1758305439391,-480.0,0.00022538,2]
[386459374,1758305439400,-967.23,0.00022538,2]
[386459375,1758305439409,-620.12,0.00022539,2]
[386459376,1758305439418,-2526.41,0.00022539,2]
[386459377,1758305439428,-480.0,0.00022539,2]
[386459378,1758305439437,-480.0,0.00022539,2]
[386459379,1758305439446,-480.0,0.0002254,2]
[386459380,1758305439455,-480.0,0.0002254,2]
[386459381,1758305439465,-500.0,0.00022547,2]
[386459382,1758305439476,-543.03333736,0.00022593,2]
[386459383,1758305439485,-500.0,0.00022593,2]
[386459384,1758305439494,-500.0,0.00022593,2]
[386459385,1758305439503,-640.15202722,0.00022593,2]
[386459386,1758305439512,-12483.6794227,0.000226,2]
[386459387,1758305439521,-500.0,0.00022678,2]
[386459388,1758305439530,-480.0,0.00022802,2]
[386459389,1758305439540,-480.0,0.00022804,2]
[386459390,1758305439550,-480.0,0.00022804,2]
[386459391,1758305439563,-480.0,0.00022804,2]
[386459392,1758305439573,-649.0,0.00022806,2]
[386459393,1758305439583,-480.0,0.00022806,2]
[386459394,1758305439594,-480.0,0.00022807,2]
[386459395,1758305439607,-538.89,0.00022807,2]
[386459396,1758305439617,-480.0,0.00022807,2]
[386459397,1758305439628,-480.0,0.00022807,2]
[386459398,1758305439644,-701.46,0.00022809,2]
[386459399,1758305439653,-480.0,0.00022812,2]
[386459400,1758305439664,-967.23,0.00022812,2]
[386459401,1758305439676,-620.12,0.00022813,2]
[386459402,1758305439686,-2526.41,0.00022813,2]
[386459403,1758305439698,-480.0,0.00022813,2]
[386459404,1758305439708,-575.83636525,0.00022813,2]
[386459405,1758305439717,-480.0,0.00022814,2]
[386459406,1758305439727,-480.0,0.00022814,2]
[386459407,1758305439736,-160.0,0.00022854,2]
[386459408,1758305439746,-1500.0,0.00022856,2]
[386459409,1758305439756,-1500.0,0.00022856,2]
[386459410,1758305439766,-1329.99712559,0.00022856,2]
[386459411,1758305439775,-1500.0,0.00022857,2]
[386459412,1758305439785,-3361.57885783,0.0002299,2]
[386459413,1758305439794,-420.0,0.00022993,2]
[386459414,1758305439803,-150.0,0.00023,2]
[386459416,1758305439813,-217.99592756,0.00023,2]
[386459418,1758305439823,-160.0,0.00023,2]
[386459419,1758305439833,-233.43972884,0.00023,2]
[386459420,1758305439843,-160.0,0.00023,2]
[386459421,1758305439852,-160.0,0.00023,2]
[386459423,1758305439862,-160.0,0.00023,2]
[386459425,1758305439872,-160.0,0.00023,2]
[386459427,1758305439881,-160.0,0.00023,2]
[386459429,1758305439891,-848.13460282,0.00023,2]
[386459431,1758305439900,-160.0,0.00023,2]
[386459433,1758305439909,-2996.07802906,0.00023,2]
[386459435,1758305439919,-480.0,0.00023019,2]
[386459438,1758305439929,-480.0,0.00023019,2]
[386459441,1758305439938,-480.0,0.00023019,2]
[386459443,1758305439947,-480.0,0.00023076,2]
[386459445,1758305439956,-480.0,0.00023078,2]
[386459447,1758305439966,-480.0,0.00023078,2]
[386459449,1758305439975,-480.0,0.00023078,2]
[386459451,1758305439984,-649.0,0.0002308,2]
[386459453,1758305439994,-480.0,0.0002308,2]
[386459455,1758305440003,-480.0,0.00023081,2]
[386459457,1758305440012,-538.89,0.00023081,2]
[386459459,1758305440022,-480.0,0.00023081,2]
[386459461,1758305440031,-480.0,0.00023081,2]
[386459463,1758305440041,-701.46,0.00023083,2]
[386459465,1758305440051,-480.0,0.00023086,2]
[386459467,1758305440061,-967.23,0.00023086,2]
[386459469,1758305440070,-620.12,0.00023087,2]
[386459471,1758305440080,-2526.41,0.00023087,2]
[386459473,1758305440090,-480.0,0.00023087,2]
[386459475,1758305440100,-480.0,0.00023088,2]
[386459477,1758305440109,-480.0,0.00023088,2]
[386459479,1758305440118,-1000.0,0.00023095,2]
[386459481,1758305440128,-500.0,0.00023141,2]
[386459482,1758305440138,-1000.0,0.00023141,2]
[386459484,1758305440147,-480.0,0.00023293,2]
[386459486,1758305440157,-480.0,0.00023293,2]
[386459488,1758305440167,-226.95897257,0.00023293,2]
[386459490,1758305440176,-480.0,0.0002335,2]
[386459492,1758305440186,-480.0,0.00023352,2]
[386459493,1758305440195,-480.0,0.00023352,2]
[386459494,1758305440205,-480.0,0.00023352,2]
[386459495,1758305440214,-649.0,0.00023354,2]
[386459496,1758305440224,-480.0,0.00023354,2]
[386459497,1758305440234,-217.1089867,0.00023355,2]
[386459498,1758305440244,-538.89,0.00023355,2]
[386459499,1758305440253,-319.32,0.00023355,2]
[386459500,1758305440262,-480.0,0.00023355,2]
[386459501,1758305440271,-701.46,0.00023357,2]
[386459502,1758305440282,-387.73576465,0.0002336,2]
[386459503,1758305440292,-967.23,0.0002336,2]
[386459504,1758305440300,-620.12,0.00023361,2]
[386459505,1758305440310,-2526.41,0.00023361,2]
[386459506,1758305440319,-480.0,0.00023361,2]
[386459507,1758305440328,-480.0,0.00023362,2]
[386459508,1758305440337,-480.0,0.00023362,2]
[386459509,1758305440346,-260.0,0.00023402,2]
[386459510,1758305440356,-300.01720022,0.00023404,2]
[386459511,1758305440366,-1453.57110112,0.00023404,2]
[386459512,1758305440375,-2000.0,0.00023405,2]
[386459513,1758305440384,-379.20565433,0.00023407,2]
[386459514,1758305440393,-326.7308045,0.00023426,2]
[386459515,1758305440433,-273.2691955,0.00023426,2]
[386459516,1758305440442,-14.43814371,0.00023512,2]
[386459517,1758305440452,-557.56185629,0.00023512,2]
[386459518,1758305440460,-1165.72972636,0.00023535,2]
[386459519,1758305440468,-624.72543265,0.00023565,2]
[386459520,1758305440477,-107.77757473,0.00023565,2]
[386459521,1758305440487,-373.13956951,0.00023565,2]
[386459522,1758305440496,-384.73371539,0.00023565,2]
[386459523,1758305440505,-1537.39592671,0.00023565,2]
[386459524,1758305440514,-480.0,0.00023567,2]
[386459525,1758305440523,-480.0,0.00023624,2]
[386459526,1758305440532,-480.0,0.00023626,2]
[386459527,1758305440542,-480.0,0.00023626,2]
[386459528,1758305440551,-480.0,0.00023626,2]
[386459529,1758305440560,-649.0,0.00023628,2]
[386459530,1758305440569,-480.0,0.00023628,2]
[386459531,1758305440578,-538.89,0.00023629,2]
[386459532,1758305440587,-480.0,0.00023629,2]
[386459533,1758305440597,-701.46,0.00023631,2]
[386459534,1758305440609,-31506.81772532,0.00023632,2]
[386459585,1758305443682,-456.82275349,0.00021156,2]
[386459587,1758305443691,-307.25770874,0.00021156,2]
[386459589,1758305443702,-1254.08621115,0.00023534,2]
[386459608,1758305446406,-830.6395,0.00023534,2]
[386459609,1758305446417,-1798.45726357,0.00023534,2]
[386459610,1758305446427,-5018.86922632,0.00023632,2]
[386459611,1758305446438,-2763.69164716,0.00023632,2]
[386459612,1758305446512,-29942.77572349,0.00023632,2]
[386459613,1758305446566,-43590.63460601,0.00023632,2]
[386459614,1758305446575,-620.12,0.00023635,2]
[386459615,1758305446584,-2526.41,0.00023635,2]
[386459616,1758305446594,-480.0,0.00023635,2]
[386459617,1758305446606,-480.0,0.00023636,2]
[386459619,1758305446615,-490.09,0.00023636,4]
[386459621,1758305446625,-480.0,0.00023636,2]
[386459623,1758305446635,-1500.0,0.00023643,2]
[386459625,1758305446644,-500.0,0.00023673,2]
[386459626,1758305446653,-500.0,0.00023673,2]
[386459628,1758305446663,-500.0,0.00023673,2]
[386459629,1758305446672,-500.0,0.00023673,2]
[386459630,1758305446682,-500.0,0.00023673,2]
[386459631,1758305446692,-500.0,0.00023673,2]
[386459632,1758305446702,-500.0,0.00023673,2]
[386459633,1758305446711,-500.0,0.00023673,2]
[386459634,1758305446720,-585.34941517,0.00023673,2]
[386459635,1758305446729,-500.0,0.00023673,2]
[386459636,1758305446738,-505.8389514,0.00023673,2]
[386459637,1758305446747,-500.0,0.00023673,2]
[386459638,1758305446756,-500.0,0.00023673,2]
[386459639,1758305446766,-10000.01,0.00023673,2]
[386459640,1758305446775,-707.00688827,0.00023689,2]
[386459641,1758305446784,-182150.14688335,0.000237,2]
[386459642,1758305446793,-6304.21,0.000237,7]
[386459643,1758305446803,-151.625973,0.000237,7]
[386459644,1758305446812,-151.0,0.000237,7]
[386459645,1758305446821,-151.0,0.000237,7]
[386459646,1758305446830,-151.0,0.000237,7]
[386459647,1758305446840,-151.0,0.000237,7]
[386459648,1758305446850,-151.0,0.000237,7]
[386459649,1758305446860,-151.0,0.000237,7]
[386459650,1758305446870,-151.0,0.000237,7]
[386459651,1758305446879,-151.0,0.000237,7]
[386459652,1758305446888,-151.0,0.000237,7]
[386459653,1758305446897,-151.0,0.000237,7]
[386459654,1758305446908,-151.0,0.000237,7]
[386459655,1758305446917,-326.414546,0.000237,7]
[386459656,1758305446927,-326.414546,0.000237,7]
[386459657,1758305446936,-326.414546,0.000237,7]
[386459658,1758305446946,-326.414546,0.000237,7]
[386459659,1758305446955,-151.0,0.000237,7]
[386459660,1758305446964,-151.0,0.000237,7]
[386459661,1758305446973,-417.15472785,0.000237,7]
[386459662,1758305446983,-9977.81551642,0.000237,7]
[386459663,1758305446992,-531.75067929,0.000237,7]
[386459664,1758305447001,-151.0,0.000237,7]
[386459665,1758305447010,-151.0,0.000237,7]
[386459666,1758305447019,-151.428437,0.000237,7]
[386459667,1758305447029,-151.0,0.000237,7]
[386459668,1758305447038,-355.501791,0.000237,7]
[386459669,1758305447047,-355.501791,0.000237,7]
[386459670,1758305447057,-355.501791,0.000237,7]
[386459671,1758305447066,-355.501791,0.000237,7]
[386459672,1758305447075,-151.0,0.000237,7]
[386459673,1758305447085,-151.0,0.000237,7]
[386459674,1758305447094,-151.0,0.000237,7]
[386459675,1758305447103,-157.87158,0.000237,7]
[386459676,1758305447112,-151.0,0.000237,7]
[386459677,1758305447121,-164.858228,0.000237,7]
[386459678,1758305447130,-164.858228,0.000237,7]
[386459679,1758305447140,-164.858228,0.000237,7]
[386459680,1758305447150,-164.858228,0.000237,7]
[386459681,1758305447161,-151.0,0.000237,7]
[386459682,1758305447170,-151.0,0.000237,7]
[386459683,1758305447180,-151.0,0.000237,7]
[386459684,1758305447189,-151.0,0.000237,7]
[386459685,1758305447199,-299.62519,0.000237,7]
[386459686,1758305447208,-151.0,0.000237,7]
[386459687,1758305447217,-151.0,0.000237,7]
[386459688,1758305447226,-151.0,0.000237,7]
[386459689,1758305447235,-151.0,0.000237,7]
[386459690,1758305447244,-151.0,0.000237,7]
[386459691,1758305447254,-151.0,0.000237,7]
[386459692,1758305447264,-151.0,0.000237,7]
[386459693,1758305447274,-151.0,0.000237,7]
[386459694,1758305447283,-151.0,0.000237,7]
[386459695,1758305447293,-151.000001,0.000237,7]
[386459696,1758305447303,-151.0,0.000237,7]
[386459697,1758305447312,-151.0,0.000237,7]
[386459698,1758305447321,-151.0,0.000237,7]
[386459699,1758305447331,-151.0,0.000237,7]
[386459700,1758305447340,-151.0,0.000237,7]
[386459701,1758305447350,-151.0,0.000237,7]
[386459702,1758305447359,-151.0,0.000237,7]
[386459703,1758305447368,-181.152354,0.000237,7]
[386459704,1758305447377,-181.152354,0.000237,7]
[386459705,1758305447387,-181.152354,0.000237,7]
[386459706,1758305447396,-181.152354,0.000237,7]
[386459707,1758305447406,-217.59815,0.000237,7]
[386459708,1758305447416,-151.0,0.000237,7]
[386459709,1758305447425,-273.842252,0.000237,7]
[386459710,1758305447435,-213.426116,0.000237,7]
[386459711,1758305447444,-743.191629,0.000237,7]
[386459712,1758305447453,-273.842252,0.000237,7]
[386459713,1758305447463,-273.842252,0.000237,7]
[386459714,1758305447471,-743.191629,0.000237,7]
[386459715,1758305447480,-273.842252,0.000237,7]
[386459716,1758305447490,-743.191629,0.000237,7]
[386459717,1758305447499,-743.191629,0.000237,7]
[386459718,1758305447509,-151.0,0.000237,7]
[386459719,1758305447517,-255.256625,0.000237,7]
[386459720,1758305447527,-255.256625,0.000237,7]
[386459721,1758305447537,-255.256625,0.000237,7]
[386459722,1758305447546,-255.256625,0.000237,7]
[386459723,1758305447555,-151.0,0.000237,7]
[386459724,1758305447564,-159.803401,0.000237,7]
[386459725,1758305447574,-279.603439,0.000237,7]
[386459726,1758305447584,-1129.122338,0.000237,7]
[386459727,1758305447594,-1129.122338,0.000237,7]
[386459728,1758305447605,-1129.122338,0.000237,7]
[386459729,1758305447615,-1129.122338,0.000237,7]
[386459730,1758305447626,-151.0,0.000237,7]
[386459731,1758305447635,-151.0,0.000237,7]
[386459732,1758305447646,-151.0,0.000237,7]
[386459733,1758305447656,-189.264393,0.000237,7]
[386459734,1758305447665,-151.0,0.000237,7]
[386459735,1758305447675,-189.264393,0.000237,7]
[386459736,1758305447688,-189.264393,0.000237,7]
[386459737,1758305447700,-189.264393,0.000237,7]
[386459738,1758305447711,-221.96758,0.000237,7]
[386459739,1758305447720,-221.96758,0.000237,7]
[386459740,1758305447731,-221.96758,0.000237,7]
[386459741,1758305447740,-221.96758,0.000237,7]
[386459742,1758305447751,-168.750915,0.000237,7]
[386459743,1758305447760,-168.750915,0.000237,7]
[386459744,1758305447769,-168.750915,0.000237,7]
[386459745,1758305447779,-168.750915,0.000237,7]
[386459746,1758305447791,-151.0,0.000237,7]
[386459747,1758305447801,-151.0,0.000237,7]
[386459748,1758305447810,-151.0,0.000237,7]
[386459749,1758305447820,-151.0,0.000237,7]
[386459750,1758305447832,-151.0,0.000237,7]
[386459751,1758305447842,-151.0,0.000237,7]
[386459752,1758305447852,-572.0,0.00023758,2]
[386459753,1758305447864,-396.8669483,0.00023822,2]
[386459754,1758305447875,-480.0,0.00023841,2]
[386459755,1758305447888,-1165.72972635,0.00023851,2]
[386459756,1758305447900,-480.0,0.00023898,2]
[386459757,1758305447911,-480.0,0.000239,2]
[386459758,1758305447923,-480.0,0.000239,2]
[386459759,1758305447935,-480.0,0.000239,2]
[386459760,1758305447945,-649.0,0.00023902,2]
[386459761,1758305447955,-271.65605042,0.00023902,2]
[386459762,1758305447966,-538.89,0.00023903,2]
[386459763,1758305447978,-480.0,0.00023903,2]
[386459764,1758305447990,-701.46,0.00023905,2]
[386459765,1758305448000,-800.0,0.00023906,2]
[386459766,1758305448012,-500.0,0.00023907,2]
[386459767,1758305448024,-620.12,0.00023909,2]
[386459768,1758305448036,-2526.41,0.00023909,2]
[386459769,1758305448048,-480.0,0.00023909,2]
[386459770,1758305448060,-480.0,0.0002391,2]
[386459771,1758305448072,-480.0,0.0002391,2]
[386459772,1758305448084,-800.0,0.00023918,2]
[386459773,1758305448096,-800.0,0.00023941,2]
[386459774,1758305448107,-360.0,0.0002395,2]
[386459775,1758305448120,-2500.0,0.00023953,2]
[386459776,1758305448132,-160.0,0.00024,3]
[386459777,1758305448144,-160.0,0.00024,3]
[386459778,1758305448154,-160.0,0.00024,3]
[386459779,1758305448166,-417.15472785,0.00024,3]
[386459780,1758305448178,-417.15472785,0.00024,3]
[386459781,1758305448190,-217.99592756,0.00024,7]
[386459782,1758305448201,-848.13460282,0.00024,7]
[386459783,1758305448212,-233.43972884,0.00024,7]
[386459784,1758305448225,-160.0,0.00024,7]
[386459785,1758305448236,-270.0,0.00024007,2]
[386459786,1758305448248,-1838.0,0.00024048,2]
[386459787,1758305448259,-800.0,0.00024054,2]
[386459788,1758305448271,-270.0,0.00024068,2]
[386459789,1758305448281,-150.0,0.00024101,2]
[386459790,1758305448292,-150.0,0.00024101,2]
[386459791,1758305448303,-977.0,0.00024101,2]
[386459792,1758305448314,-2158.0,0.00024101,2]
[386459793,1758305448325,-634.0,0.00024101,2]
[386459794,1758305448335,-500.0,0.00024112,2]
[386459795,1758305448348,-480.0,0.00024115,2]
[386459796,1758305448360,-544.36926844,0.00024152,2]
[386459797,1758305448371,-192.93927548,0.00024157,2]
[386459798,1758305448383,-1165.72972635,0.00024168,2]
[386459799,1758305448396,-480.0,0.00024172,2]
[386459800,1758305448410,-480.0,0.00024174,2]
[386459801,1758305448423,-480.0,0.00024174,2]
[386459802,1758305448435,-480.0,0.00024174,2]
[386459803,1758305448448,-649.0,0.00024176,2]
[386459804,1758305448460,-538.89,0.00024177,2]
[386459805,1758305448472,-480.0,0.00024177,2]
[386459806,1758305448485,-701.46,0.00024179,2]
[386459807,1758305448496,-620.12,0.00024183,2]
[386459808,1758305448507,-2526.41,0.00024183,2]
[386459809,1758305448517,-480.0,0.00024183,2]
[386459810,1758305448527,-216.36871732,0.00024184,2]
[386459811,1758305448538,-480.0,0.00024184,2]
[386459812,1758305448548,-500.0,0.00024185,2]
[386459813,1758305448559,-2000.0,0.00024191,2]
[386459814,1758305448570,-270.0,0.00024198,2]
[386459815,1758305448581,-500.0,0.00024215,2]
[386459816,1758305448594,-1000.0,0.00024221,2]
[386459817,1758305448608,-270.0,0.00024228,2]
[386459818,1758305448619,-151.0,0.000243,6]
[386459819,1758305448630,-500.0,0.00024353,2]
[386459820,1758305448640,-480.0,0.00024389,2]
[386459821,1758305448651,-270.0,0.00024428,2]
[386459822,1758305448663,-480.0,0.00024446,2]
[386459823,1758305448674,-480.0,0.00024448,2]
[386459824,1758305448685,-337.76150766,0.00024448,2]
[386459825,1758305448698,-480.0,0.00024448,2]
[386459826,1758305448709,-649.0,0.0002445,2]
[386459827,1758305448720,-538.89,0.00024451,2]
[386459828,1758305448731,-228.56394119,0.00024451,2]
[386459829,1758305448742,-701.46,0.00024453,2]
[386459830,1758305448752,-500.0,0.00024455,2]
[386459831,1758305448762,-620.12,0.00024457,2]
[386459832,1758305448773,-2526.41,0.00024457,2]
[386459833,1758305448783,-480.0,0.00024457,2]
[386459834,1758305448793,-480.0,0.00024458,2]
[386459835,1758305448804,-270.0,0.00024475,2]
[386459836,1758305448815,-1165.72972635,0.00024484,2]
[386459837,1758305448826,-460.0,0.00024498,2]
[386459838,1758305448837,-151.0,0.000245,6]
[386459839,1758305448847,-1000.0,0.00024501,2]
[386459840,1758305448858,-600.0,0.00024522,2]
[386459841,1758305448869,-379.20565433,0.0002458,2]
[386459842,1758305448879,-500.0,0.00024649,2]
[386459843,1758305448890,-500.0,0.00024649,2]
[386459844,1758305448900,-28165.34175787,0.0002465,2]
[386459845,1758305448912,-500.0,0.00024653,2]
[386459846,1758305448922,-380.0,0.00024658,2]
[386459847,1758305448932,-480.0,0.00024663,2]
[386459848,1758305448944,-534.0,0.00024665,2]
[386459849,1758305448956,-151.0,0.00024665,2]
[386459850,1758305448966,-151.0,0.00024665,2]
[386459851,1758305448976,-151.0,0.00024665,2]
[386459852,1758305448987,-213.57958604,0.00024665,2]
[386459853,1758305448998,-500.0,0.00024665,2]
[386459854,1758305449009,-151.0,0.00024665,2]
[386459855,1758305449020,-151.0,0.00024665,2]
[386459856,1758305449030,-151.0,0.00024665,2]
[386459857,1758305449041,-151.0,0.00024665,2]
[386459858,1758305449051,-151.0,0.00024665,2]
[386459859,1758305449062,-151.0,0.00024665,2]
[386459860,1758305449073,-194.11698866,0.00024665,2]
[386459861,1758305449083,-151.0,0.00024665,2]
[386459862,1758305449093,-151.0,0.00024665,2]
[386459863,1758305449104,-151.0,0.00024665,2]
[386459864,1758305449114,-154.69557485,0.00024665,2]
[386459865,1758305449124,-151.0,0.00024665,2]
[386459866,1758305449136,-151.0,0.00024665,2]
[386459867,1758305449146,-151.0,0.00024665,2]
[386459868,1758305449157,-500.0,0.00024672,2]
[386459869,1758305449168,-218.0,0.00024674,2]
[386459870,1758305449179,-270.0,0.00024681,2]
[386459871,1758305449189,-151.0,0.000247,7]
[386459872,1758305449200,-480.0,0.0002472,2]
[386459873,1758305449211,-480.0,0.00024722,2]
[386459874,1758305449221,-477.31231611,0.00024722,2]
[386459875,1758305449231,-649.0,0.00024724,2]
[386459876,1758305449242,-538.89,0.00024725,2]
[386459877,1758305449252,-701.46,0.00024727,2]
[386459878,1758305449263,-620.12,0.00024731,2]
[386459879,1758305449274,-2526.41,0.00024731,2]
[386459880,1758305449284,-480.0,0.00024731,2]
[386459881,1758305449295,-480.0,0.00024732,2]
[386459882,1758305449306,-772.98821353,0.00024739,2]
[386459883,1758305449317,-500.0,0.00024768,2]
[386459884,1758305449327,-500.74865934,0.00024773,2]
[386459885,1758305449338,-632.17063936,0.00024773,2]
[386459886,1758305449348,-500.0,0.00024799,2]
[386459887,1758305449358,-500.0,0.00024799,2]
[386459888,1758305449369,-390.76,0.00024799,2]
[386459889,1758305449380,-151.0,0.000248,7]
[386459890,1758305449391,-151.0,0.000248,7]
[386459891,1758305449402,-151.0,0.000248,7]
[386459892,1758305449413,-151.0,0.000248,7]
[386459893,1758305449422,-151.0,0.000248,7]
[386459894,1758305449432,-151.0,0.000248,7]
[386459895,1758305449441,-151.0,0.000248,7]